Workbook

Sheet Feuil1
B1: Travail PRA (cf feuille "Donnée")
B2: Importation de 350 barils de cire de Carnaüba
B4: Caractéristiques
B5: Poids brut | D5: kg | F5: =F6+F7+F8 -> 35,420.00 | G5: kg brut | I5: 1
B6: Tare par barils | C6: 350.00 | D6: x | E6: 5 | F6: =C6*E6 -> 1,750.00 | G6: kg | I6: 0.5
B7: Surtare par palettes | C7: 7.00 | D7: x | E7: 10 | F7: =C7*E7 -> 70.00 | G7: kg | I7: 0.5
B8: Poids net | C8: densité | D8: 0.80 | F8: =F9*D8 -> 33,600.00 | G8: kg net | I8: 2
B9: Capacité net de 350 ba. | C9: 350.00 | D9: x | E9: 120 | F9: =C9*E9 -> 42,000.00 | G9: litres | I9: 1 | J9: =SUM(I5:I9) -> 5
C11: quantité | D11: tarif | E11: unité | F11: montant
B13: Achat de 350 barils PAB | C13: =F8 -> 33,600.00 | D13: 22.00 | E13: cru | F13: =C13*D13 -> 739,200.00 | I13: 2
B14: remise | C14: =F13 -> 739,200.00 | D14: 0.05 | F14: =C14*D14 -> 36,960.00 | I14: 1
B15: PAN | E15: cru | F15: =F13-F14 -> 702,240.00
C16: change | D16: 3.70 | E16: frs | G16: =F15/100*D16 -> 25,982.88 | I16: 1 | J16: =SUM(I13:I16) -> 4
B18: Transport
B19: Chargement | C19: f.o.b | I19: 1
B20: Rio -> Marseille | C20: =F5/1000 -> 35.42 | D20: 30,000.00 | E20: cru | F20: =D20*C20 -> 1,062,600.00 | G20: =F20/100*D16 -> 39,316.20 | I20: 1
B21: Marseille -> Laus. | D21: 1.55 | E21: € | F21: 1,040.00 | G21: =F21*D21 -> 1,612.00 | I21: 1
B22: Laus -> dépôt | C22: =F5/100 -> 354.20 | D22: 1.20 | E22: frs | G22: =D22*C22 -> 425.04 | I22: 1 | J22: =SUM(I19:I22) -> 4
G23: =SUM(G20:G22) -> 41,353.24
B25: Assurance
B26: Prime brute | C26: =G16*1.3 -> 33,777.74 | D26: 0.025 | E26: frs | F26: =C26*D26 -> 844.44 | I26: 2
B27: Remise | C27: =F26 -> 844.44 | D27: 0.10 | F27: =C27*D27 -> 84.44 | I27: 1
B28: Prime net | F28: =F26-F27 -> 760.00
B29: Timbre fédéral | C29: =F28 -> 760.00 | D29: 0.01 | F29: =(INT(C29*D29*10)+1)/10 -> 7.60 | G29: =F28+F29 -> 767.60 | I29: 2 | J29: =SUM(I26:I29) -> 5
B31: Douane
B32: Taxe | C32: =F5/100 -> 354.20 | D32: 12.00 | F32: =D32*C32 -> 4,250.40 | I32: 1
B33: Statistiques | C33: =F32 -> 4,250.40 | D33: 0.03 | F33: =(INT(D33*C33*10)+1)/10 -> 127.60 | G33: =SUM(F32:F33) -> 4,378.00 | I33: 2 | J33: =SUM(I32:I33) -> 3
B35: Divers | C35: =G16 -> 25,982.88 | D35: =1/200 -> 0.005 | G35: =C35*D35 -> 129.91 | I35: 1 | J35: =I35 -> 1
B38: PRA | G38: =SUM(G23:G35)+G16 -> 72,611.63
C40: PRA | D40: tot. l
B41: PRA d'un litre de cire | C41: =G38 -> 72,611.63 | D41: 42,000.00 | E41: frs | G41: =C41/D41 -> 1.73 | I41: 1
C42: fr/val | D42: PAN
B43: Frais/valeur pour 100 PAN | C43: =G29+G35 -> 897.51 | D43: =G16 -> 25,982.88 | E43: frs | F43: % | G43: =C43/D43*100 -> 3.45 | I43: 1
C44: fr/pds | D44: Pds N
B45: Frais/poids pour 100 kg net | C45: =G23+G33 -> 45,731.24 | D45: =F8 -> 33,600.00 | E45: kg | G45: =C45/D45*100 -> 136.10 | I45: 1
B46: Poids net | C46: 20.00 | E46: t.
B47: PAN | C47: 20,000.00 | D47: 19.00 | E47: cru | F47: =D47*C47 -> 380,000.00
D48: 3.70 | E48: frs | G48: =F47/100*D16 -> 14,060.00 | I48: 1
B49: Frais s/poids | C49: =C47/100 -> 200.00 | D49: =G45 -> 136.10 | E49: frs | G49: =D49*C49 -> 27,220.98 | I49: 1
B50: Frais s/valeur | C50: =G48/100 -> 140.60 | D50: =G43 -> 3.45 | E50: frs | G50: =D50*C50 -> 485.67 | I50: 1 | J50: =SUM(I41:I50) -> 6
B51: Prix de revient d'achat | E51: frs | G51: =SUM(G48:G50) -> 41,766.64 | J51: =SUM(J9:J50) -> 28

Sheet Donnée
B2: Sujet : Prix de revient d'achat
B4: Un industriel lausannois achète au Brésil 350 barils de cire de Carnaüba.
B6: Renseignements
B8: - Conditions de livraison : | F8: f.o.b.
B9: - Tare : | F9: 5 kg par baril.
B10: - Surtare : | F10: 10 kg par palette de 50 barils
B11: - Prix : | F11: 22.- cruzados le kg net
F12: remise 5%
B13: - Change : | F13: Cruzados | G13: 3.50 / 3.70
F14: € | G14: 1.51 / 1.55
B15: - Capacité d'un baril : | F15: 120 litres
B16: - Densité de la cire : | F16: 0.8
B18: Transports
B20: - Chargement sur bateau : | F20: A Rio 6'000.- cruzados.
B21: - Transport maritime : | F21: 30'000.- cruzados la tonne.
B22: - Chemin de fer SNCF : | F22: Marseille -> Lausanne € 1'040.-.
B23: - Camion Lavanchy | F23: Lausanne -> Dépôt CHF 1.20/q.
B25: Assurances
B27: - Prime : | F27: 2 1/2 % du prix d'achat net (sans transports ni frais)
F28: majoré d'un bénéfice espéré de 30%.
B29: - Remise-abonnement : | F29: 10% de la prime.
B30: - Timbre fédéral : | F30: 1%.
B32: Douane
B34: - Droits d'entrée : | F34: CHF 12.- le quintal.
B35: - Statistiques : | F35: 3%.
B37: Divers
B39: - Commission et frais | F39: 1/2 % du PAN.
B43: Travail demandé :
B45: 1) Etablir le PRA total.
B46: 2) Calculer le PRA du litre de cire de Carnaüba.
B47: 3) Déterminer le coefficient de frais sur la valeur pour CHF 100.- de PAN.
B48: 4) Déterminer le coefficient de frais sur le poids par quintal net.
B49: 5) A l'aide des coefficients calculer le PRA total d'une commande de 20 tonnes net au
B50: prix d'achat net de 1'900.- cruzados le quintal net (Changes identiques).
